bitfinex/quotes_ETHUSD_20250923
["timestamp","ask_amount","ask_price","bid_price","bid_amount"]
[1758594755183,1.47409049,4162.2,4162.1,0.024]
[1758594755388,4.72910866,4162.2,4162.1,0.024]
[1758594755623,1.47262444,4162.2,4162.1,0.4653]
[1758594755810,1.35262444,4162.2,4162.1,0.4653]
[1758594756326,4.43390606,4162.2,4162.1,0.024]
[1758594756486,5.47992246,4162.2,4162.1,0.024]
[1758594756910,2.8352469,4162.2,4162.1,0.024]
[1758594757339,1.77290124,4162.2,4162.1,0.024]
[1758594757548,0.72688484,4162.2,4162.1,0.4653]
[1758594757731,1.77795245,4162.2,4162.1,0.4653]
[1758594757933,1.77795245,4162.2,4162.1,0.024]
[1758594758337,0.72709819,4162.2,4162.1,0.024]
[1758594758639,3.12971599,4162.2,4161.8,0.12]
[1758594758849,4.101,4162.3,4161.8,0.12]
[1758594758850,1.27304898,4162.0,4161.8,0.12]
[1758594759148,0.50610866,4161.9,4161.8,0.12]
[1758594759317,1.77915764,4161.9,4161.8,0.5613]
[1758594759718,1.77915764,4161.9,4161.8,3.20760647]
[1758594760031,0.50610866,4161.9,4161.8,0.8048]
[1758594760448,1.77915764,4161.9,4161.8,0.8048]
[1758594760788,0.50610866,4161.9,4161.8,0.8048]
[1758594761213,2.0027811,4161.9,4161.8,0.8048]
[1758594761416,0.72765867,4161.9,4161.8,0.8048]
[1758594762046,10.90100741,4161.9,4161.6,0.004]
[1758594762219,1.71706067,4161.7,4161.6,0.004]
[1758594762424,3.2634611,4161.7,4160.6,0.6848]
[1758594762632,2.40304544,4161.4,4160.6,0.6848]
[1758594762841,6.90331075,4161.6,4160.6,0.6848]
[1758594762842,0.72765867,4161.3,4160.7,2.4034413]
[1758594763045,0.72765867,4161.3,4160.6,0.6848]
[1758594763227,3.2638152,4161.3,4159.6,2.40402759]
[1758594763430,9.20436736,4161.3,4160.2,3.4413]
[1758594763608,9.20436736,4161.3,4160.8,2.40337749]
[1758594763609,0.72765867,4161.3,4160.8,2.40337749]
[1758594763813,0.72765867,4161.3,4160.9,2.40328754]
[1758594764035,0.72765867,4161.3,4161.2,0.4453]
[1758594764227,0.86080819,4161.3,4161.2,0.004]
[1758594764427,0.72765867,4161.3,4161.2,0.6888]
[1758594764886,0.72765867,4161.3,4161.2,0.004]
[1758594765239,0.72765867,4161.3,4161.2,3.11598445]
[1758594765640,0.72765867,4161.3,4161.2,0.6888]
[1758594765837,2.00733688,4161.3,4161.2,0.004]
[1758594766078,0.72765867,4161.3,4161.2,0.004]
[1758594766256,2.80671162,4161.3,4161.2,0.004]
[1758594766454,0.8610628,4161.3,4161.2,0.004]
[1758594766787,0.8610628,4161.3,4161.2,0.7127]
[1758594767077,0.8610628,4161.3,4161.2,0.004]
[1758594767380,1.78882138,4161.3,4161.2,8.00885293]
[1758594767581,1.78882138,4161.3,4161.2,7.21685293]
[1758594767785,0.50610866,4161.3,4161.2,7.21685293]
[1758594768142,0.72876817,4161.3,4161.2,7.21685293]
[1758594768471,1.58392226,4161.3,4161.2,7.21685293]
[1758594768686,1.58392226,4161.3,4161.2,0.004]
[1758594768864,1.14901326,4161.3,4161.2,0.004]
[1758594769053,0.86234792,4161.3,4161.2,0.004]
[1758594769669,3.4953431,4161.3,4161.2,0.004]
[1758594770256,0.86234792,4161.3,4161.2,0.004]
[1758594771094,3.2654431,4161.3,4161.2,0.004]
[1758594771408,1.09224792,4161.3,4161.2,0.004]
[1758594771610,0.86234792,4161.3,4161.2,0.004]
[1758594771987,0.86234792,4161.3,4161.2,0.4736]
[1758594772177,0.86234792,4161.3,4161.2,0.8327]
[1758594772367,2.14456642,4161.3,4161.2,0.8327]
[1758594772697,2.14456642,4161.3,4161.2,0.5936]
[1758594772897,2.14456642,4161.3,4161.2,0.124]
[1758594773305,2.14462276,4161.3,4161.2,0.004]
[1758594774300,0.86234792,4161.3,4161.2,0.004]
[1758594774879,1.71719202,4161.3,4161.2,0.4736]
[1758594775093,0.72876817,4161.3,4161.2,3.11585293]
[1758594775677,0.72876817,4161.3,4161.2,0.4736]
[1758594776178,1.36993837,4161.3,4161.2,0.4736]
[1758594776373,1.36993837,4161.3,4161.2,2.87675293]
[1758594776911,1.36993837,4161.3,4161.2,3.11585293]
[1758594777306,0.50610866,4161.3,4161.2,3.11585293]
[1758594777883,0.50610866,4161.3,4161.2,0.004]
[1758594778408,0.50610866,4161.3,4161.2,3.13988445]
[1758594778808,0.6411702,4162.0,4161.2,1.5047]
[1758594779108,0.73571164,4161.9,4161.8,2.40280647]
[1758594779330,0.51305554,4161.9,4161.8,3.11150647]
[1758594779530,0.51305554,4161.9,4161.8,0.7087]
[1758594779942,0.51305554,4161.9,4161.8,2.87240647]
[1758594780093,0.51305554,4161.9,4161.8,0.4696]
[1758594780431,0.51305554,4161.9,4161.8,3.11150647]
[1758594780597,0.001,4162.1,4162.0,2.40269101]
[1758594780793,0.51409408,4162.1,4162.0,3.11139101]
[1758594781397,0.001,4162.1,4162.0,3.11139101]
[1758594781628,0.001,4162.1,4161.7,6.21]
[1758594781821,0.001,4162.1,4162.0,2.40269101]
[1758594782818,0.51386999,4162.1,4162.0,4.13]
[1758594783133,1.18466999,4162.1,4162.0,4.25]
[1758594783446,0.6718,4162.1,4162.0,4.25]
[1758594783649,0.2309,4162.1,4162.0,4.25]
[1758594784728,0.001,4162.1,4162.0,4.25]
[1758594784941,0.001,4162.1,4162.0,0.12]
[1758594785346,0.001,4162.1,4162.0,2.52269101]
[1758594785849,0.001,4162.1,4162.0,0.12]
[1758594785998,0.001,4162.1,4162.0,2.52269101]
[1758594786198,0.001,4162.1,4162.0,2.99229101]
[1758594786652,0.001,4162.1,4162.0,3.01631792]
[1758594786828,0.001,4162.1,4162.0,3.25541792]
[1758594787168,0.001,4162.1,4162.0,7.35839101]
[1758594787513,0.001,4162.1,4162.0,0.12]
[1758594787699,0.001,4162.1,4162.0,6.64869101]
[1758594788145,0.001,4162.1,4162.0,7.11829101]
[1758594788705,0.001,4162.1,4162.0,7.35739101]
[1758594790253,0.001,4162.1,4162.0,8.14939101]
[1758594792341,0.001,4162.1,4162.0,11.14939101]
[1758594793850,0.001,4162.1,4162.0,7.02339101]
[1758594794056,0.001,4162.1,4162.0,12.98029101]
[1758594794649,0.001,4162.1,4162.0,13.21939101]
[1758594795379,0.001,4162.1,4162.0,6.64169101]
[1758594795530,0.2284,4162.1,4162.0,6.52169101]
[1758594796565,0.2284,4162.1,4161.8,2.40275114]
[1758594796768,0.2284,4162.1,4161.2,0.004]
[1758594796769,0.2427,4162.0,4161.2,0.004]
[1758594796973,0.6926,4162.0,4161.3,6.52104451]
[1758594797173,0.2427,4161.9,4161.4,2.40301585]
[1758594797546,0.001,4162.1,4161.3,4.118]
[1758594797754,0.2427,4161.8,4161.6,2.40287355]
[1758594797962,0.4499,4161.9,4161.7,4.118]
[1758594798488,0.2427,4161.8,4161.7,4.118]
[1758594799484,0.2427,4161.8,4161.6,0.004]
[1758594799485,2.40286421,4161.7,4161.6,0.004]
[1758594799664,5.88342849,4161.7,4161.6,0.004]
[1758594799855,6.09546421,4161.7,4161.6,0.004]
[1758594800381,6.96176904,4161.7,4161.6,0.004]
[1758594800543,13.02662905,4161.7,4161.6,0.004]
[1758594801347,6.09546421,4161.7,4161.6,0.004]
[1758594801540,0.09630606,4162.0,4161.6,0.004]
[1758594801745,0.2427,4162.0,4161.6,0.004]
[1758594801978,0.2427,4161.9,4161.6,0.004]
[1758594802411,0.001,4162.1,4161.6,0.004]
[1758594802750,0.2437,4162.1,4161.6,0.004]
[1758594803581,0.001,4162.1,4161.8,2.4028051]
[1758594803751,0.001,4162.1,4161.8,6.5308051]
[1758594804473,0.001,4162.1,4161.8,4.128]
[1758594805015,0.001,4162.1,4161.8,4.5951]
[1758594805281,0.001,4162.1,4161.8,4.126]
[1758594805487,0.001,4162.1,4162.0,0.12]
[1758594808882,0.001,4162.1,4162.0,2.98979101]
[1758594811091,0.001,4162.1,4162.0,3.22529101]
[1758594811395,0.001,4162.1,4162.0,2.52269101]
[1758594811984,0.001,4162.1,4162.0,0.12]
[1758594812764,0.001,4162.1,4162.0,2.52269101]
[1758594812959,0.001,4162.1,4162.0,0.12]
[1758594813168,0.6936,4162.1,4162.0,4.236]
[1758594813880,0.6936,4162.1,4162.0,0.12]
[1758594814169,0.6936,4162.1,4162.0,4.237]
[1758594816805,1.00321389,4162.1,4161.9,4.113]
[1758594817005,0.6926,4162.0,4161.9,4.113]
[1758594817615,0.2427,4162.0,4161.9,4.113]
[1758594817975,2.40280461,4161.9,4161.7,0.12]
[1758594818188,0.31061389,4162.1,4161.6,3.406]
[1758594818189,0.29561185,4161.8,4161.6,3.406]
[1758594818487,2.40364587,4162.1,4161.6,3.406]
[1758594818696,0.2427,4162.0,4161.6,3.406]
[1758594819011,0.001,4162.1,4161.6,3.406]
[1758594819211,0.001,4162.1,4161.9,0.12]
[1758594819817,0.2427,4162.0,4161.9,0.12]
[1758594820020,0.001,4162.1,4161.9,0.12]
[1758594820523,0.2437,4162.1,4161.9,0.12]
[1758594820684,0.001,4162.1,4161.9,0.12]
[1758594821283,0.2437,4162.1,4161.9,0.12]
[1758594821587,0.2437,4162.1,4161.9,0.07]
[1758594822086,0.24096945,4162.1,4161.9,0.07]
[1758594822483,0.99949222,4162.1,4161.6,0.004]
[1758594822732,0.4499,4162.0,4161.6,0.004]
[1758594822893,5.40335698,4162.6,4161.6,0.02802921]
[1758594823094,0.12,4162.5,4161.8,0.12]
[1758594823320,0.001,4162.6,4161.9,2.42672618]
[1758594823630,0.001,4162.6,4162.4,0.12]
[1758594824222,0.2427,4162.5,4162.4,4.234]
[1758594824522,0.001,4162.6,4162.4,4.234]
[1758594825349,0.001,4162.6,4162.4,0.12]
[1758594825350,2.6451024,4162.5,4162.4,0.12]
[1758594825700,0.2427,4162.5,4162.4,0.12]
[1758594825905,2.4024975,4162.4,4162.0,0.12]
[1758594826138,0.6735,4162.3,4161.9,4.114]
[1758594826459,0.6735,4162.2,4161.9,3.994]
[1758594826739,2.62978166,4162.1,4161.9,3.994]
[1758594826899,0.2271,4162.0,4161.9,3.994]
[1758594827345,2.40246011,4162.4,4161.9,3.994]
[1758594827513,0.37234563,4162.5,4161.9,3.994]
[1758594827715,2.65474863,4162.5,4162.0,0.02402691]
[1758594827935,2.88184863,4162.5,4162.2,0.12]
[1758594828235,2.40246976,4162.4,4162.2,0.12]
[1758594828643,0.25234563,4162.5,4162.2,0.12]
[1758594828846,0.001,4162.6,4162.2,0.12]
[1758594828847,2.40339628,4162.6,4162.2,0.12]
[1758594829031,0.2271,4162.5,4162.2,0.12]
[1758594829216,0.001,4162.6,4162.2,0.12]
[1758594829414,0.001,4162.6,4162.3,0.4537]
[1758594829820,0.001,4162.6,4162.2,0.12]
[1758594830018,0.001,4162.6,4162.3,4.83272517]
[1758594830342,0.001,4162.6,4162.5,0.12]
[1758594830910,0.001,4162.6,4162.5,0.14402402]
[1758594831413,0.001,4162.6,4162.5,2.54642642]
[1758594831606,0.001,4162.6,4162.5,3.24312642]
[1758594832215,0.001,4162.6,4162.5,0.8167]
[1758594832425,0.001,4162.6,4162.5,3.2191024]
[1758594833833,0.001,4162.6,4162.5,7.3291024]
[1758594834151,0.001,4162.6,4162.5,9.4061024]
[1758594834315,0.001,4162.6,4162.5,3.2191024]
[1758594834517,0.001,4162.6,4162.5,9.4041024]
[1758594836259,0.001,4162.6,4162.5,7.0017]
[1758594836555,0.001,4162.6,4162.5,9.4031024]
[1758594837630,0.001,4162.6,4162.5,3.2191024]
[1758594838151,0.001,4162.6,4162.5,9.3991024]
[1758594840237,0.001,4162.6,4162.5,0.12]
[1758594840442,0.2281,4162.6,4162.5,0.12]
[1758594840642,0.6745,4162.6,4162.5,3.225]
[1758594840943,0.2281,4162.6,4162.5,0.12]
[1758594841286,0.6745,4162.6,4162.5,4.221]
[1758594841451,0.001,4162.6,4162.5,6.6234024]
[1758594841649,0.001,4162.6,4162.5,7.3201024]
[1758594842192,0.001,4162.6,4161.8,0.004]
[1758594842193,2.40274874,4161.9,4161.8,0.004]
[1758594842494,3.31652361,4161.9,4161.8,0.004]
[1758594842701,0.91377487,4161.9,4161.8,0.004]
[1758594842843,0.2271,4161.9,4161.8,0.004]
[1758594843555,2.40274874,4161.9,4161.8,0.004]
[1758594843772,2.62984874,4161.9,4161.8,0.004]
[1758594844265,3.07624874,4161.9,4161.8,0.004]
[1758594847457,0.6735,4161.9,4161.8,0.004]
[1758594847659,3.001,4162.6,4161.8,0.004]
[1758594847660,0.2271,4162.4,4161.8,0.004]
[1758594847860,0.001,4162.6,4161.9,0.02402748]
[1758594848060,0.001,4162.6,4161.9,2.4267735]
[1758594848854,2.40240613,4162.5,4161.8,0.7007]
[1758594849051,2.62950613,4162.5,4161.8,0.4577]
[1758594849251,0.2271,4162.5,4161.8,0.4577]
[1758594849489,0.2271,4162.5,4161.8,2.86050264]
[1758594849708,0.2271,4162.5,4161.8,0.004]
[1758594849990,3.0,4162.3,4161.8,0.004]
[1758594850187,2.40274874,4161.9,4161.8,0.004]
[1758594850586,3.07624874,4161.9,4161.8,0.004]
[1758594851190,6.07624874,4161.9,4161.8,0.004]
[1758594851898,5.62984874,4161.9,4161.8,0.004]
[1758594852068,2.40309518,4161.3,4161.1,1e-08]
[1758594852268,11.83085192,4161.2,4161.1,1e-08]
[1758594852487,13.01476166,4161.2,4161.1,1e-08]
[1758594853276,12.28265293,4161.2,4161.1,1e-08]
[1758594853583,13.76322774,4161.2,4161.1,1e-08]
[1758594854493,14.2728039,4161.2,4161.1,1e-08]
[1758594854999,13.76322774,4161.2,4161.1,1e-08]
[1758594862095,20.82322774,4161.2,4161.1,1e-08]
[1758594863196,20.82322774,4161.2,4160.9,0.004]
[1758594863197,3.19526844,4161.0,4160.9,1e-08]
[1758594863384,12.76310604,4161.0,4160.9,1e-08]
[1758594863566,13.43960604,4161.0,4160.9,1e-08]
[1758594864075,15.02361721,4161.0,4160.9,1e-08]
[1758594865475,10.89861721,4161.0,4160.9,1e-08]
[1758594865674,23.4642563,4161.0,4160.9,1e-08]
[1758594865879,10.7662563,4161.0,4160.9,1e-08]
[1758594866073,17.10167587,4161.0,4160.9,1e-08]
[1758594866301,16.9692563,4161.0,4160.9,1e-08]
[1758594866499,17.10166483,4161.0,4160.9,1e-08]
[1758594866703,16.9692563,4161.0,4160.9,1e-08]
[1758594866903,17.10166371,4161.0,4160.9,1e-08]
[1758594868013,16.66686371,4161.0,4160.9,1e-08]
[1758594868185,17.74283391,4161.0,4160.9,1e-08]
[1758594868577,17.10166371,4161.0,4160.9,1e-08]
[1758594868804,16.66686371,4161.0,4160.9,1e-08]
[1758594869023,23.72686371,4161.0,4160.9,1e-08]
[1758594869204,24.16166371,4161.0,4160.9,1e-08]
[1758594870251,20.61516371,4161.0,4160.9,1e-08]
[1758594870421,11.2697192,4161.0,4160.9,1e-08]
[1758594870620,18.40694538,4161.0,4160.9,1e-08]
[1758594870919,11.04910604,4161.0,4160.9,1e-08]
[1758594871123,8.60626844,4161.0,4160.9,1e-08]
[1758594871429,19.18526571,4161.0,4160.9,1e-08]
[1758594871594,19.69472851,4161.0,4160.9,1e-08]
[1758594872123,19.47371568,4161.0,4160.9,1e-08]
[1758594872327,12.33707624,4161.0,4160.9,1e-08]
[1758594872511,13.88195916,4161.0,4160.9,1e-08]
[1758594873932,13.66075926,4161.0,4160.9,0.46690001]
[1758594874129,12.11587634,4161.0,4160.9,0.46690001]
[1758594874341,12.11587634,4161.0,4160.9,0.71180001]
[1758594874716,11.60626844,4161.0,4160.9,0.46690001]
[1758594874915,11.60626844,4161.0,4160.9,0.71180001]
[1758594875233,11.60626844,4161.0,4160.9,0.46690001]
[1758594877330,4.125,4161.0,4160.9,0.71180001]
[1758594877535,7.18,4161.1,4160.9,0.71180001]
[1758594877693,11.297,4161.1,4160.9,0.71180001]
[1758594878034,2.40326844,4161.0,4160.9,1e-08]
[1758594878245,2.40326844,4161.0,4160.9,0.46690001]
[1758594878599,2.40326844,4161.0,4160.9,0.71180001]
[1758594880224,2.91496786,4161.0,4160.9,0.71180001]
[1758594880431,0.73381361,4161.0,4160.9,0.71180001]
[1758594880643,3.13708205,4161.0,4160.9,0.71180001]
[1758594881219,4.82090573,4161.0,4160.9,1e-08]
[1758594881597,4.82090573,4161.0,4160.9,0.46690001]
[1758594881928,3.13708205,4161.0,4160.9,0.46690001]
[1758594882730,7.25008205,4161.0,4160.9,0.71180001]
[1758594884233,7.25008205,4161.0,4160.9,0.46690001]
[1758594884737,7.2501731,4161.0,4160.9,1e-08]
[1758594884962,0.51169942,4161.0,4160.9,3.11512621]
[1758594885167,0.001,4161.2,4160.9,0.83180001]
[1758594885342,0.001,4161.2,4161.0,0.73583268]
[1758594885547,0.001,4161.2,4161.0,0.7118]
[1758594885882,0.001,4161.2,4161.1,0.6954]
[1758594886286,0.001,4161.2,4161.1,0.4696]
[1758594886490,0.001,4161.2,4161.1,0.6954]
[1758594887829,0.001,4161.2,4161.1,3.09861068]
[1758594888035,0.001,4161.2,4161.1,0.6954]
[1758594888724,0.001,4161.2,4160.9,1e-08]
[1758594888982,0.001,4161.2,4161.0,0.4696]
[1758594889266,0.001,4161.2,4161.1,0.4696]
[1758594889570,0.001,4161.2,4161.1,0.6954]
[1758594891454,0.001,4161.2,4161.1,3.09861068]
[1758594891771,0.001,4161.2,4161.1,0.6954]
[1758594892175,0.001,4161.2,4161.1,3.09861068]
[1758594892348,0.001,4161.2,4161.1,0.6954]
[1758594892552,0.001,4161.2,4161.1,3.09861068]
[1758594893239,0.001,4161.2,4161.1,0.6954]
[1758594893841,0.001,4161.2,4161.1,7.21461068]
[1758594895742,0.001,4161.2,4161.1,7.33461068]
[1758594896767,0.001,4161.2,4161.1,3.21861068]
[1758594896974,0.001,4161.2,4161.1,7.32961068]
[1758594897176,0.001,4161.2,4161.1,9.40761068]
[1758594897472,0.001,4161.2,4161.1,0.5896]
[1758594897773,0.001,4161.2,4161.1,7.32861068]
[1758594900765,0.001,4161.2,4161.1,8.12061068]
[1758594901281,0.001,4161.2,4161.1,11.12061068]
[1758594902448,0.001,4161.2,4161.1,11.11561068]
[1758594902784,0.001,4161.2,4161.1,13.19361068]
[1758594902985,0.001,4161.2,4161.1,7.01061068]
[1758594903183,0.001,4161.2,4161.1,13.19361068]
[1758594903887,0.001,4161.7,4161.1,13.19361068]
[1758594903888,0.001,4161.7,4161.6,3.19492195]
[1758594904187,0.001,4161.7,4161.6,7.29892195]
[1758594904391,0.001,4161.7,4161.6,11.11432195]
[1758594905791,0.001,4161.7,4161.6,7.01032195]
[1758594905970,0.001,4161.7,4161.6,13.19032195]
[1758594907168,0.001,4161.7,4161.6,11.11232195]
[1758594907369,0.001,4161.7,4161.6,13.18932195]
[1758594908662,0.001,4162.1,4162.0,3.19469101]
[1758594908864,0.001,4163.0,4162.9,3.19417156]
[1758594909062,0.001,4163.5,4163.0,6.19411386]
[1758594909263,0.001,4163.5,4163.0,6.88951386]
[1758594909905,0.001,4163.5,4163.4,3.19388307]
[1758594910066,0.001,4163.5,4163.4,7.3179019]
[1758594910392,0.001,4163.5,4163.4,7.98928307]
[1758594910581,0.001,4163.5,4163.4,10.98928307]
[1758594910987,0.001,4163.5,4163.4,10.29388307]
[1758594911223,0.001,4163.5,4163.4,11.57788307]
[1758594911386,0.7142,4163.5,4162.6,2.40232209]
[1758594911553,0.7142,4163.5,4162.8,2.40221963]
[1758594911554,0.7132,4163.4,4162.8,2.40221963]
[1758594911889,0.7132,4163.4,4163.0,2.40211386]
[1758594912093,0.4736,4163.4,4163.1,4.12402056]
[1758594912259,0.2396,4163.3,4163.1,4.12402056]
[1758594912451,0.2396,4163.2,4163.1,4.12402056]
[1758594912654,0.001,4163.5,4163.3,2.40189324]
[1758594912861,0.001,4163.5,4163.4,4.12401883]
[1758594913087,0.001,4163.5,4163.4,6.50188307]
[1758594913507,0.2406,4163.5,4162.5,2.40240235]
[1758594913702,0.2406,4163.5,4163.0,2.40205804]
[1758594913868,0.001,4163.5,4163.1,6.53605111]
[1758594914216,2.40198448,4163.3,4162.7,2.077]
[1758594914505,2.40198448,4163.3,4161.7,1.0178]
[1758594914506,0.7132,4163.2,4161.8,0.4696]
[1758594914670,0.2396,4163.1,4162.3,2.40247176]
[1758594915001,0.2396,4163.1,4162.4,2.2450246]
[1758594915205,0.2396,4163.1,4162.5,2.40235246]
[1758594915380,0.2396,4163.1,4162.4,2.221]
[1758594915781,0.2396,4163.1,4162.5,2.4024024]
[1758594915981,0.2396,4163.1,4162.6,2.40232889]
[1758594916205,0.2396,4163.1,4162.7,4.112]
[1758594916371,0.2324,4163.5,4162.8,0.02402229]
[1758594916576,0.2324,4163.5,4162.9,4.112]
[1758594916577,2.84460157,4163.4,4162.9,4.112]
[1758594916894,0.6741,4163.3,4163.0,4.112]
[1758594917293,2.40283989,4163.5,4163.0,4.112]
[1758594917294,0.2314,4163.2,4163.0,4.112]
[1758594917907,0.2314,4163.1,4163.0,4.112]
[1758594918278,0.2314,4163.4,4163.0,4.112]
[1758594918473,0.2314,4163.4,4163.0,6.51406739]
[1758594918674,0.2314,4163.3,4163.0,4.112]
[1758594918874,0.4437,4163.5,4163.3,0.12]
[1758594919399,0.4427,4163.4,4163.3,0.12]
[1758594919605,0.6741,4163.4,4163.3,0.12]
[1758594920009,0.2314,4163.4,4163.3,0.12]
[1758594920217,0.2314,4163.4,4163.3,4.234]
[1758594920398,0.6741,4163.4,4163.3,4.234]
[1758594920712,0.6741,4163.4,4163.3,4.233]
[1758594921116,0.001,4163.5,4163.4,2.40188307]
[1758594921310,0.001,4163.5,4163.3,6.63493758]
[1758594921513,0.001,4163.5,4163.4,2.84918307]
[1758594921687,0.001,4163.5,4163.4,3.08218307]
[1758594922409,0.001,4163.5,4163.4,2.8732019]
[1758594922813,0.001,4163.5,4163.4,3.1062019]
[1758594923296,0.001,4163.5,4163.4,3.8982019]
[1758594923501,0.001,4163.5,4163.4,4.0182019]
[1758594924298,0.001,4163.5,4163.4,7.0182019]
[1758594924495,0.001,4163.5,4163.4,6.99418307]
[1758594930208,0.001,4164.0,4163.8,0.792]
[1758594930395,0.001,4164.0,4163.7,2.40167474]
[1758594930396,0.001,4164.0,4163.9,6.19359465]
[1758594930621,0.001,4164.0,4163.9,12.37259465]
[1758594930828,0.001,4164.0,4163.9,13.05289465]
[1758594931904,0.001,4164.0,4163.9,13.05689465]
[1758594933836,0.001,4164.0,4163.9,10.74789465]
[1758594934040,0.001,4164.0,4163.9,12.82389465]
[1758594934203,0.001,4164.0,4163.9,13.05689465]
[1758594935034,0.001,4164.0,4163.9,6.19359465]
[1758594935223,0.001,4164.0,4163.9,12.37259465]
[1758594936033,0.001,4164.0,4163.9,13.05289465]
[1758594938419,0.001,4164.0,4163.9,6.64089465]
[1758594938616,0.001,4164.0,4163.9,13.05189465]
[1758594940303,0.001,4164.0,4163.9,13.17189465]
[1758594940499,0.001,4164.0,4163.9,6.31359465]
[1758594940702,0.001,4164.0,4163.9,12.49059465]
[1758594941288,0.001,4164.0,4163.9,10.41459465]
[1758594941534,0.001,4164.0,4163.9,12.49059465]
[1758594943444,0.001,4164.0,4163.9,12.93789465]
[1758594943643,0.001,4164.0,4163.9,13.17089465]
[1758594944030,0.001,4164.0,4163.9,12.49059465]
[1758594946134,0.001,4164.0,4163.9,12.48459465]
[1758594946865,0.001,4164.0,4163.9,12.48359465]
[1758594947543,0.001,4164.0,4163.9,12.93839465]
[1758594948309,0.001,4164.0,4163.9,13.17959465]
[1758594949357,0.001,4164.0,4163.9,13.05959465]
[1758594950342,0.001,4164.0,4163.9,6.43479465]
[1758594950543,0.001,4164.0,4163.9,6.88959465]
[1758594950735,0.001,4164.0,4163.9,13.05959465]
[1758594953344,0.001,4164.0,4163.9,6.88959465]
[1758594953633,0.001,4164.0,4163.9,10.98359465]
[1758594953833,0.001,4164.0,4163.9,13.05859465]
[1758594954958,0.001,4164.0,4163.9,13.05659465]
[1758594955458,0.001,4164.5,4163.9,13.05659465]
[1758594955459,0.001,4164.5,4164.4,3.19330631]
[1758594955665,0.001,4164.5,4164.4,10.30931937]
[1758594955956,0.001,4164.5,4164.4,10.98130631]
[1758594957041,0.001,4164.9,4164.8,3.19307568]
[1758594957247,0.001,4164.9,4164.8,12.38308643]
[1758594957443,0.001,4164.9,4164.8,12.81387568]
[1758594957642,0.001,4165.7,4165.3,3.792]
[1758594957944,0.001,4165.7,4165.6,6.19261455]
[1758594958157,0.001,4165.7,4165.6,12.36061455]
[1758594958353,0.001,4165.7,4165.6,13.29159698]
[1758594959266,0.001,4165.7,4165.6,13.41159698]
[1758594959974,0.001,4165.7,4165.6,12.95679698]
[1758594960177,0.001,4165.7,4165.6,6.31261455]
[1758594960376,0.001,4165.7,4165.6,12.47861455]
[1758594960596,0.001,4165.7,4165.6,12.95181784]
[1758594960886,0.001,4165.7,4165.6,13.40661784]
[1758594961255,0.001,4165.7,4165.6,13.64781784]
[1758594961461,0.001,4165.7,4165.6,12.95181784]
[1758594961981,0.001,4166.2,4166.1,3.19232644]
[1758594962185,0.001,4166.2,4166.1,10.28432644]
[1758594962476,0.001,4166.2,4166.1,11.10032644]
[1758594963603,0.4584,4167.8,4167.7,2.39940494]
[1758594963751,0.001,4168.2,4167.7,6.2852]
[1758594963972,0.001,4168.2,4168.1,0.1192]
[1758594964172,0.001,4168.2,4168.1,6.60937468]
[1758594964671,0.2274,4168.2,4168.1,6.60937468]
[1758594965180,0.6858,4168.2,4168.1,6.60937468]
[1758594965579,0.2274,4168.2,4168.1,7.40137468]
[1758594965980,0.001,4168.2,4168.1,7.40137468]
[1758594966180,0.2274,4168.2,4168.1,10.40137468]
[1758594966407,0.6858,4168.2,4168.1,6.31037468]
[1758594966582,0.6858,4168.2,4168.1,5.51837468]
[1758594966783,0.6858,4168.2,4168.1,11.68337468]
[1758594967113,0.6858,4168.2,4168.1,3.1192]
[1758594967277,3.08491712,4168.2,4168.1,0.1192]
[1758594967476,2.39918488,4168.1,4166.8,2.39991499]
[1758594967701,2.39923689,4168.0,4167.6,0.1192]
[1758594967901,0.6848,4168.1,4167.7,3.111]
[1758594968093,0.8201393,4168.0,4167.7,3.111]
[1758594968293,0.1353393,4168.0,4167.7,3.111]
[1758594968609,0.6848,4167.9,4167.7,3.111]
[1758594968817,0.6848,4167.8,4167.7,3.111]
[1758594969394,2.39940494,4167.7,4167.6,0.1192]
[1758594969592,2.39940494,4167.7,4167.6,4.2122]
[1758594969796,3.08420494,4167.7,4167.6,4.2122]
[1758594970129,3.63255054,4167.7,4167.6,4.2122]
[1758594970812,3.63255054,4167.7,4167.6,0.1192]
[1758594971015,2.39968585,4167.3,4167.1,0.1192]
[1758594971220,2.39969283,4167.2,4167.1,0.1192]
[1758594971426,2.39969283,4167.2,4166.1,2.2795131]
[1758594971427,2.39963525,4167.3,4167.2,4.092]
[1758594971648,2.39963525,4167.3,4167.1,1.579]
[1758594971649,2.39970541,4167.2,4167.1,1.579]
[1758594971941,0.49184253,4167.3,4167.1,4.092]
[1758594971942,2.89147782,4167.3,4167.1,4.092]
[1758594972262,0.2264,4167.2,4167.1,4.092]
[1758594972538,0.6848,4167.2,4167.1,4.2112]
[1758594972830,0.6848,4167.2,4167.1,0.1192]
[1758594972991,0.6848,4167.2,4167.1,4.2112]
[1758594973432,0.6848,4167.2,4167.1,6.61095042]
[1758594973741,0.6848,4167.2,4167.1,0.1192]
[1758594973945,0.6848,4167.2,4167.1,4.2112]
[1758594974722,0.6848,4167.2,4167.1,4.2102]
[1758594976229,3.08449283,4167.2,4167.1,0.1192]
[1758594976414,3.08449283,4167.2,4166.8,0.1192]
[1758594976415,0.99324928,4167.2,4166.8,0.1192]
[1758594976609,2.3998656,4166.9,4166.7,2.067]
[1758594976814,0.6992,4166.8,4166.7,2.067]
[1758594977418,3.0991232,4166.8,4166.7,2.067]